bitfinex/quotes_SOLUSD_20240813
["timestamp","ask_amount","ask_price","bid_price","bid_amount"]
[1723568291500,37.65,149.56,149.46,16.6262]
[1723568291905,37.65,149.53,149.46,16.6262]
[1723568292090,37.65,149.53,149.47,0.50196]
[1723568292294,37.65,149.53,149.46,16.6262]
[1723568293822,37.65,149.53,149.47,0.25098]
[1723568294118,37.65,149.59,149.47,0.25098]
[1723568294119,37.65,149.56,149.47,0.25098]
[1723568294411,37.65,149.56,149.47,45.25098]
[1723568294621,37.65,149.56,149.48,0.12549]
[1723568294792,37.65,149.56,149.48,0.25098]
[1723568295192,37.65,149.56,149.49,0.25098]
[1723568295790,37.65,149.53,149.46,16.6262]
[1723568295988,37.65,149.5,149.46,16.6262]
[1723568296301,54.3626,149.59,149.41,21.8494]
[1723568296302,37.65,149.48,149.41,21.8494]
[1723568296622,37.65,149.5,149.41,21.8494]
[1723568297986,37.65,149.52,149.41,21.8494]
[1723568298786,37.65,149.52,149.42,45.37647]
[1723568298992,37.65,149.52,149.43,0.12549]
[1723568300985,37.65,149.54,149.44,6.078]
[1723568301190,37.65,149.54,149.45,0.37647]
[1723568301710,37.65,149.56,149.46,16.55819]
[1723568301916,15.0436,149.61,149.46,16.55819]
[1723568301917,37.65,149.58,149.48,0.12549]
[1723568302214,37.65,149.58,149.48,45.50196]
[1723568303999,37.65,149.6,149.48,45.50196]
[1723568304207,37.65,149.6,149.5,0.12549]
[1723568304398,37.65,149.6,149.5,0.37647]
[1723568304618,37.65,149.58,149.5,0.37647]
[1723568304801,37.65,149.58,149.5,0.25098]
[1723568305001,37.65,149.6,149.51,6.1588]
[1723568305206,37.65,149.58,149.51,6.1588]
[1723568305728,7.5191323,149.64,149.51,6.1588]
[1723568305729,6.6844,149.61,149.51,6.1588]
[1723568305899,37.65,149.57,149.51,6.1588]
[1723568307098,37.65,149.57,149.49,16.5671]
[1723568307409,37.65,149.54,149.47,6.149]
[1723568308798,37.65,149.57,149.47,6.149]
[1723568309831,37.65,149.57,149.48,0.12549]
[1723568310029,37.65,149.57,149.48,0.37647]
[1723568310327,37.65,149.57,149.47,6.149]
[1723568310700,37.65,149.57,149.48,0.12549]
[1723568310906,37.65,149.59,149.48,0.37647]
[1723568311145,37.65,149.59,149.5,15.5366]
[1723568311428,37.65,149.59,149.51,0.25098]
[1723568312331,37.65,149.59,149.51,0.12549]
[1723568312736,37.65,149.59,149.51,0.37647]
[1723568314420,0.8361323,149.64,149.51,0.37647]
[1723568314421,37.65,149.61,149.51,0.37647]
[1723568315131,37.65,149.58,149.51,0.25098]
[1723568315310,37.65,149.58,149.51,0.12549]
[1723568315511,37.65,149.58,149.5,15.5366]
[1723568316042,37.65,149.6,149.51,0.12549]
[1723568317214,37.65,149.6,149.51,0.25098]
[1723568319438,37.65,149.6,149.51,0.12549]
[1723568319637,37.65,149.57,149.5,15.5366]
[1723568320941,37.65,149.54,149.47,15.81240805]
[1723568321147,37.65,149.54,149.47,6.149]
[1723568321738,37.65,149.57,149.47,6.149]
[1723568321949,37.65,149.57,149.47,15.81240805]
[1723568322160,37.65,149.6,149.48,32.83546736]
[1723568322454,37.65,149.6,149.49,8.03475931]
[1723568322632,37.65,149.6,149.51,9.66589313]
[1723568323334,37.65,149.6,149.52,10.04472971]
[1723568323540,37.65,149.6,149.52,0.25098]
[1723568323723,37.65,149.6,149.52,0.12549]
[1723568323926,37.65,149.6,149.52,0.37647]
[1723568324538,37.65,149.63,149.53,6.0182]
[1723568325840,0.8361323,149.64,149.54,15.2089]
[1723568326048,0.8361323,149.64,149.54,24.88177306]
[1723568326275,0.8361323,149.64,149.55,0.12549]
[1723568326276,37.65,149.63,149.55,0.12549]
[1723568326443,37.65,149.61,149.54,15.2089]
[1723568326962,37.65,149.63,149.54,24.88177306]
[1723568327170,37.65,149.63,149.54,15.2089]
[1723568328156,0.8361323,149.64,149.54,15.2089]
[1723568328157,37.65,149.61,149.54,15.2089]
[1723568328324,0.8361323,149.64,149.54,15.2089]
[1723568328529,37.65,149.62,149.54,15.2089]
[1723568329143,37.65,149.6,149.54,15.2089]
[1723568329840,0.8361323,149.64,149.54,15.2089]
[1723568330047,37.65,149.63,149.54,15.2089]
[1723568330663,0.8361323,149.64,149.54,15.2089]
[1723568330859,0.8361323,149.64,149.55,17.69853678]
[1723568331036,0.8361323,149.64,149.55,9.6680673]
[1723568331236,0.8361323,149.64,149.56,0.37647]
[1723568331744,0.8361323,149.64,149.56,75.37647]
[1723568331954,0.8361323,149.64,149.57,6.6401]
[1723568332138,0.8361323,149.64,149.58,0.37647]
[1723568332657,0.8361323,149.64,149.58,0.25098]
[1723568333258,0.8361323,149.64,149.59,23.0803]
[1723568334744,0.8361323,149.64,149.6,0.12549]
[1723568334953,0.8361323,149.64,149.6,0.25098]
[1723568335664,0.8361323,149.64,149.59,23.0803]
[1723568336875,37.65,149.6,149.55,6.6136]
[1723568337885,37.65,149.62,149.55,6.6136]
[1723568338181,0.8361323,149.64,149.56,0.37647]
[1723568338340,0.8361323,149.64,149.56,0.25098]
[1723568338544,0.8361323,149.64,149.56,45.25098]
[1723568339174,0.8361323,149.64,149.57,0.12549]
[1723568339977,0.8361323,149.64,149.56,0.12549]
[1723568340674,0.8361323,149.64,149.55,6.6136]
[1723568341747,0.8361323,149.64,149.56,0.12549]
[1723568341950,0.8361323,149.64,149.56,0.37647]
[1723568342367,0.8361323,149.64,149.55,6.6136]
[1723568342561,37.65,149.62,149.55,6.6136]
[1723568342974,37.65,149.6,149.55,6.6136]
[1723568344549,0.8361323,149.64,149.55,6.6136]
[1723568344550,37.65,149.62,149.55,6.6136]
[1723568344876,38.4861323,149.64,149.55,6.6136]
[1723568345282,38.4861323,149.64,149.56,0.12549]
[1723568345459,37.65,149.62,149.55,6.6136]
[1723568345667,37.65,149.58,149.54,15.3465]
[1723568347259,37.65,149.58,149.51,6.3844]
[1723568348477,37.65,149.56,149.51,6.3844]
[1723568349768,37.65,149.54,149.5,16.6133]
[1723568350277,37.65,149.62,149.51,35.75807774]
[1723568350777,37.65,149.62,149.51,26.2943]
[1723568350991,37.65,149.59,149.51,6.2943]
[1723568351780,37.65,149.56,149.51,6.2943]
[1723568351976,37.65,149.56,149.5,16.6133]
[1723568352288,37.65,149.53,149.47,15.97981966]
[1723568352464,37.65,149.53,149.47,6.2943]
[1723568352799,37.65,149.56,149.47,6.2943]
[1723568353294,37.65,149.59,149.47,6.2943]
[1723568353295,37.65,149.53,149.47,6.2943]
[1723568354695,37.65,149.56,149.47,6.2943]
[1723568355863,37.65,149.59,149.47,15.99330306]
[1723568356072,37.65,149.59,149.48,20.0]
[1723568356285,37.65,149.56,149.48,20.0]
[1723568357182,6.38208078,149.56,149.48,20.0]
[1723568357372,6.38208078,149.56,149.47,6.2943]
[1723568358198,6.38208078,149.56,149.48,20.0]
[1723568358402,37.65,149.59,149.48,20.0]
[1723568359275,37.65,149.59,149.49,0.37647]
[1723568359490,37.65,149.59,149.47,6.2943]
[1723568359693,37.65,149.59,149.48,20.0]
[1723568361202,37.65,149.59,149.47,6.2943]
[1723568361375,37.65,149.55,149.47,6.2943]
[1723568361914,30.1,149.55,149.47,6.2943]
[1723568362203,30.1,149.59,149.48,20.0]
[1723568362409,30.1,149.59,149.49,15.1749]
[1723568362588,30.1,149.61,149.51,6.1799]
[1723568362906,30.1,149.61,149.52,0.12549]
[1723568363092,30.1,149.61,149.53,15.1749]
[1723568363906,37.59,149.62,149.53,15.1749]
[1723568364085,37.59,149.62,149.54,0.12549]
[1723568365308,38.4261323,149.64,149.54,45.12549]
[1723568365607,38.4261323,149.64,149.55,0.25098]
[1723568365777,38.4261323,149.64,149.56,0.12549]
[1723568367000,38.4261323,149.64,149.57,6.3521]
[1723568367209,0.8361323,149.64,149.58,0.37647]
[1723568367391,0.8361323,149.64,149.59,16.0497]
[1723568368677,38.4261323,149.64,149.59,16.0497]
[1723568369018,37.59,149.62,149.57,6.3521]
[1723568370283,38.4261323,149.64,149.57,6.3521]
[1723568377216,0.8361323,149.64,149.57,6.3521]
[1723568377426,38.4261323,149.64,149.57,6.3521]
[1723568378197,37.59,149.62,149.57,6.3521]
[1723568378606,0.8361323,149.64,149.57,6.3521]
[1723568379007,37.59,149.63,149.57,6.3521]
[1723568379504,37.59,149.61,149.55,15.748]
[1723568380321,37.59,149.63,149.55,15.748]
[1723568380833,37.59,149.63,149.56,0.12549]
[1723568381226,37.59,149.63,149.55,15.748]
[1723568382110,37.59,149.63,149.56,0.12549]
[1723568382301,37.59,149.63,149.55,15.748]
[1723568383809,37.59,149.63,149.56,0.12549]
[1723568384005,30.07,149.63,149.56,0.12549]
[1723568384516,30.07,149.61,149.55,15.748]
[1723568385096,30.07,149.59,149.55,15.748]
[1723568388534,30.07,149.61,149.55,15.748]
[1723568389324,0.8361323,149.64,149.55,15.748]
[1723568389533,30.07,149.63,149.55,15.748]
[1723568390220,30.07,149.63,149.56,0.12549]
[1723568390527,30.07,149.63,149.55,15.748]
[1723568391307,30.07,149.61,149.55,15.748]
[1723568393619,0.8361323,149.64,149.55,15.748]
[1723568393620,30.07,149.63,149.55,15.748]
[1723568394519,30.07,149.61,149.55,15.748]
[1723568396942,30.07,149.59,149.55,15.748]
[1723568397325,30.07,149.61,149.55,15.748]
[1723568398417,30.07,149.59,149.55,15.748]
[1723568399044,30.07,149.61,149.55,15.748]
[1723568400350,30.07,149.59,149.55,15.748]
[1723568400813,30.07,149.61,149.55,15.748]
[1723568402049,30.07,149.63,149.55,15.748]
[1723568402728,0.8361323,149.64,149.57,6.035]
[1723568403052,0.8361323,149.64,149.58,0.37647]
[1723568403261,0.8361323,149.64,149.59,16.1332]
[1723568403548,0.8361323,149.64,149.6,0.12549]
[1723568403723,0.8361323,149.64,149.59,16.1332]
[1723568404125,0.8361323,149.64,149.6,0.12549]
[1723568404365,0.8361323,149.64,149.6,0.25098]
[1723568406154,0.8361323,149.64,149.61,17.7169206]
[1723568406322,0.8361323,149.64,149.6,9.93998287]
[1723568406529,0.8361323,149.64,149.6,9.93010266]
[1723568406842,0.8361323,149.64,149.6,9.93017721]
[1723568407043,0.8361323,149.64,149.61,9.67919721]
[1723568407346,0.8361323,149.64,149.6,9.67919721]
[1723568407531,0.8361323,149.64,149.61,9.67919721]
[1723568407731,0.8361323,149.64,149.6,9.67919721]
[1723568408542,0.8361323,149.64,149.62,6.55]
[1723568408741,17.5271323,149.79,149.62,6.55]
[1723568408742,30.07,149.69,149.63,16.1744]
[1723568409264,30.07,149.67,149.62,6.55]
[1723568409857,30.07,149.69,149.62,6.55]
[1723568410328,15.9211,149.76,149.63,20.0]
[1723568410527,30.07,149.72,149.64,0.37647]
[1723568410965,30.07,149.7,149.63,20.0]
[1723568411632,30.07,149.7,149.64,0.25098]
[1723568411837,30.07,149.73,149.65,0.12549]
[1723568412628,30.07,149.73,149.66,16.2514]
[1723568413757,30.07,149.71,149.66,16.2514]
[1723568415232,18.58027657,149.76,149.66,16.2514]
[1723568415431,30.07,149.71,149.66,16.2514]
[1723568415837,18.58027657,149.76,149.66,16.2514]
[1723568415838,15.9211,149.76,149.66,16.2514]
[1723568416034,30.07,149.71,149.66,16.2514]
[1723568416969,30.07,149.69,149.66,16.2514]
[1723568417430,30.07,149.69,149.63,20.0]
[1723568417636,15.9211,149.76,149.63,20.0]
[1723568417836,30.07,149.69,149.63,20.0]
[1723568419785,30.07,149.67,149.62,22.2302]
[1723568420083,30.07,149.64,149.58,22.8358]
[1723568420368,30.07,149.66,149.58,22.8358]
[1723568420369,30.07,149.61,149.58,22.8358]
[1723568420864,30.07,149.66,149.54,21.7225]
[1723568420865,30.07,149.59,149.54,21.7225]
[1723568422244,30.07,149.59,149.52,9.6947384]
[1723568422443,30.07,149.59,149.5,22.8027]
[1723568422444,30.07,149.59,149.51,9.6947384]
[1723568423439,30.07,149.59,149.5,22.8027]
[1723568423643,30.07,149.59,149.51,9.6956427]
[1723568424047,30.07,149.59,149.5,32.4983427]
[1723568424246,30.07,149.59,149.51,10.0721127]
[1723568424465,30.07,149.59,149.51,9.9466227]
[1723568424668,2.68245395,149.67,149.53,22.5182]
[1723568424881,30.07,149.66,149.54,74.9466227]
[1723568425057,30.07,149.66,149.54,105.0166227]
[1723568425364,30.07,149.68,149.56,46.5177]
[1723568425568,30.07,149.68,149.57,71.32148]
[1723568425766,30.07,149.68,149.58,0.12549]
[1723568425972,30.07,149.68,149.58,9.9466227]
[1723568426157,30.07,149.68,149.6,0.12549]
[1723568426344,30.07,149.68,149.6,0.25098]
[1723568426543,16.0126,149.72,149.61,0.25098]
[1723568426544,30.07,149.7,149.61,0.25098]
[1723568426743,30.07,149.68,149.61,0.25098]
[1723568427272,30.07,149.68,149.6,0.25098]
[1723568427464,30.07,149.68,149.61,0.12549]
[1723568429556,30.07,149.68,149.61,30.12549]
[1723568429743,30.07,149.68,149.62,0.12549]
[1723568429952,30.07,149.7,149.63,16.2461]
[1723568430164,30.07,149.7,149.64,0.25098]
[1723568430470,30.07,149.72,149.65,0.12549]
[1723568431056,30.07,149.72,149.63,16.12257]
[1723568431266,30.07,149.72,149.64,51.3859]
[1723568431471,30.07,149.72,149.64,6.3859]
[1723568431673,30.07,149.7,149.64,6.3859]
[1723568435258,30.07,149.7,149.65,0.12549]
[1723568436246,30.07,149.7,149.64,6.3859]
[1723568436247,16.6247,149.75,149.64,6.3859]
[1723568436466,30.07,149.69,149.64,6.3859]
[1723568437495,16.6247,149.75,149.64,6.3859]
[1723568437702,30.07,149.71,149.64,6.3859]
[1723568438490,30.07,149.71,149.65,0.12549]
[1723568438694,30.07,149.73,149.65,0.37647]
[1723568438909,30.07,149.73,149.65,20.37647]
[1723568439112,30.07,149.73,149.65,0.12549]
[1723568439113,30.07,149.71,149.65,0.12549]
[1723568439415,30.07,149.69,149.64,6.3859]
[1723568440611,30.07,149.71,149.64,6.3859]
[1723568441278,30.07,149.71,149.65,0.37647]
[1723568441908,16.6247,149.75,149.65,0.37647]
[1723568442201,16.6247,149.75,149.67,0.12549]
[1723568442202,30.07,149.75,149.67,0.12549]
[1723568442404,30.07,149.75,149.67,65.50196]
[1723568442611,30.07,149.73,149.67,65.37647]
[1723568442809,30.07,149.73,149.67,0.25098]
[1723568443376,30.07,149.71,149.66,16.5546]
[1723568443716,30.07,149.69,149.64,6.3859]
[1723568444017,15.8598,149.75,149.64,6.3859]
[1723568444018,30.07,149.72,149.64,6.3859]
[1723568444193,30.07,149.74,149.65,20.0]
[1723568444885,16.1393,149.79,149.66,16.0237]
[1723568445089,30.07,149.73,149.67,0.12549]
[1723568445300,30.07,149.73,149.66,16.0237]
[1723568446395,30.07,149.73,149.67,0.12549]
[1723568446695,30.07,149.73,149.67,0.25098]
[1723568447306,30.07,149.73,149.66,16.0237]
[1723568447492,30.07,149.71,149.66,16.0237]
[1723568449587,30.07,149.69,149.64,6.3859]
[1723568450388,30.07,149.65,149.6,6.6637]
[1723568450591,30.07,149.62,149.57,16.5691]
[1723568451126,30.07,149.64,149.58,1.33604866]
[1723568451287,30.07,149.64,149.57,16.5691]
[1723568451702,30.07,149.66,149.58,1.3365084]
[1723568451930,30.07,149.68,149.59,1.33616228]
[1723568452293,30.07,149.68,149.58,29.67871825]
[1723568452526,30.07,149.66,149.59,20.0]
[1723568453099,30.07,149.66,149.58,20.0]
[1723568453304,30.07,149.64,149.57,26.24781825]
[1723568453605,30.07,149.62,149.57,16.5691]
[1723568453798,30.07,149.62,149.56,6.6637]
[1723568454100,30.07,149.6,149.53,26.26277192]
[1723568454429,15.0533,149.65,149.53,26.26277192]
[1723568454430,30.07,149.58,149.53,26.26277192]
[1723568454730,30.07,149.6,149.53,16.5691]
[1723568455399,30.07,149.62,149.54,9.69367192]
[1723568456205,15.0533,149.65,149.53,26.26277192]
[1723568456434,30.07,149.62,149.54,29.69367192]
[1723568456608,30.07,149.62,149.54,9.69367192]
[1723568456808,15.0533,149.65,149.53,16.5691]
[1723568456809,30.07,149.6,149.53,16.5691]
[1723568457135,30.07,149.58,149.53,16.5691]
[1723568458324,30.07,149.6,149.53,16.5691]
[1723568459740,30.07,149.61,149.53,16.5691]
[1723568461129,30.07,149.57,149.48,22.82031136]
[1723568461311,30.07,149.57,149.48,6.191]
[1723568462033,30.07,149.55,149.48,6.191]
[1723568462424,30.07,149.57,149.48,6.191]
[1723568462806,30.07,149.55,149.48,6.191]
[1723568463417,30.07,149.53,149.48,6.191]
[1723568464010,30.07,149.53,149.47,16.6443]
[1723568464212,30.07,149.51,149.45,6.3355]
[1723568464436,30.07,149.49,149.43,15.0114]
[1723568465240,30.07,149.47,149.43,15.0114]
[1723568465450,30.07,149.47,149.42,0.8361323]
[1723568466739,30.07,149.45,149.42,0.8361323]
[1723568466928,30.07,149.43,149.42,0.8361323]
[1723568467536,30.07,149.4,149.34,6.9534602]
[1723568468065,6.1242,149.47,149.34,6.9534602]
[1723568468227,30.07,149.44,149.34,6.9534602]
[1723568469237,30.07,149.42,149.34,6.9534602]
[1723568469863,30.07,149.4,149.34,6.9534602]
[1723568470161,30.07,149.42,149.34,6.9534602]
[1723568470329,30.07,149.44,149.34,6.9534602]
[1723568471748,45.0,149.43,149.34,6.9534602]
[1723568472155,2.62600557,149.46,149.34,6.9534602]
[1723568472456,15.9528,149.49,149.37,30.07]
[1723568472833,15.9528,149.49,149.38,20.0]
[1723568472834,30.07,149.48,149.38,20.0]
[1723568473437,15.9528,149.49,149.36,15.1065]
[1723568473438,30.07,149.46,149.36,15.1065]
[1723568473637,15.9528,149.49,149.36,15.1065]
[1723568473638,30.07,149.44,149.36,15.1065]
[1723568473841,30.07,149.44,149.34,6.9534602]
[1723568474349,30.07,149.42,149.34,6.9534602]
[1723568475126,30.07,149.42,149.32,16.3683]
[1723568475327,30.07,149.38,149.28,16.3683]
[1723568475533,30.07,149.36,149.28,16.3683]
[1723568475762,30.07,149.36,149.25,6.0885]
[1723568475967,30.07,149.38,149.25,6.0885]
[1723568476134,30.07,149.38,149.26,30.07]
[1723568476460,30.07,149.39,149.27,2.17571188]
[1723568476678,30.07,149.39,149.27,0.8361323]
[1723568477173,39.09828499,149.45,149.32,30.07]
[1723568477481,15.4201,149.45,149.34,30.07]
[1723568477976,15.4201,149.45,149.35,0.12549]
[1723568478179,37.68,149.44,149.32,37.68]
[1723568478358,37.68,149.44,149.31,16.61928]
[1723568478671,37.68,149.42,149.32,20.0]
[1723568478971,37.68,149.4,149.31,16.3683]
[1723568479466,37.68,149.42,149.31,16.3683]
[1723568479653,37.68,149.44,149.31,16.3683]
[1723568479857,37.68,149.44,149.32,20.0]
[1723568480546,37.68,149.42,149.33,0.12549]
[1723568480752,37.68,149.42,149.32,20.0]
[1723568481687,0.12549,149.41,149.32,20.0]
[1723568482387,37.68,149.42,149.31,16.3683]
[1723568482388,37.68,149.4,149.31,16.3683]
[1723568482590,9.82849769,149.39,149.31,16.3683]
[1723568483386,37.68,149.4,149.27,17.4240323]
[1723568483387,9.82849769,149.37,149.27,17.4240323]
[1723568483568,9.82849769,149.37,149.28,20.0]
[1723568483765,9.82849769,149.35,149.27,17.4240323]
[1723568483965,9.82849769,149.33,149.27,17.4240323]
[1723568484192,9.82849769,149.33,149.27,0.8361323]
[1723568484508,37.68,149.34,149.27,0.8361323]
[1723568484509,9.82849769,149.32,149.27,0.8361323]
[1723568485166,9.82849769,149.32,149.28,15.9801]
[1723568485585,9.82849769,149.31,149.3,6.3853]
[1723568485805,9.82849769,149.31,149.3,71.63628]
[1723568486294,37.68,149.43,149.31,0.12549]
[1723568486464,53.1467,149.45,149.33,0.12549]
[1723568486670,53.1467,149.45,149.33,20.50196]
[1723568487001,37.68,149.43,149.33,20.37647]
[1723568487210,37.68,149.43,149.33,0.37647]
[1723568487377,37.68,149.39,149.31,20.0]
[1723568487706,59.8382,149.45,149.32,0.12549]
[1723568487707,37.68,149.41,149.32,0.12549]
[1723568487889,37.68,149.41,149.32,45.25098]
[1723568488276,37.68,149.41,149.32,0.25098]
[1723568489236,37.68,149.41,149.31,20.0]
[1723568489237,37.68,149.39,149.31,20.0]
[1723568489814,37.68,149.39,149.3,6.63628]
[1723568490019,37.68,149.39,149.31,0.37647]
[1723568490419,37.68,149.42,149.32,0.12549]
[1723568491028,37.68,149.42,149.31,65.37647]
[1723568491335,37.68,149.42,149.32,0.12549]
[1723568492038,37.68,149.46,149.34,0.12549]
[1723568492332,15.8173,149.49,149.34,104.52049683]
[1723568492333,37.68,149.48,149.34,104.52049683]
[1723568492515,37.68,149.48,149.36,0.12549]
[1723568492720,37.68,149.48,149.36,103.18196]
[1723568492919,37.68,149.5,149.36,103.18196]
[1723568493119,37.68,149.52,149.38,37.80549]
[1723568493318,37.68,149.52,149.4,0.12549]
[1723568493529,37.68,149.52,149.41,6.5164]
[1723568493718,37.68,149.52,149.42,45.50196]
[1723568493915,37.68,149.54,149.42,45.50196]
[1723568494337,15.7721,149.57,149.44,0.12549]
[1723568494538,37.68,149.58,149.46,0.12549]
[1723568494721,37.68,149.6,149.46,20.50196]
[1723568494905,38.90989719,149.67,149.5,0.12549]
[1723568495113,38.90989719,149.67,149.55,6.2991]
[1723568495114,37.68,149.64,149.55,6.2991]
[1723568495340,37.68,149.64,149.57,0.12549]
[1723568495532,37.68,149.66,149.57,0.12549]
[1723568497226,22.0367,149.72,149.57,0.12549]
[1723568497426,37.68,149.69,149.57,0.12549]
[1723568497730,37.68,149.69,149.57,20.12549]
[1723568497929,37.68,149.69,149.59,0.12549]
[1723568498134,22.0367,149.72,149.58,0.37647]
[1723568498135,37.68,149.66,149.58,0.37647]
[1723568498748,37.68,149.66,149.59,0.12549]
[1723568499270,37.68,149.64,149.55,6.2991]
[1723568500862,37.68,149.64,149.56,45.50196]
[1723568502249,37.68,149.66,149.56,45.50196]
[1723568502448,25.97617366,149.77,149.56,45.50196]
[1723568502449,2.62973029,149.77,149.58,37.80549]
[1723568502644,37.68,149.7,149.6,0.12549]
[1723568502959,37.68,149.7,149.6,45.25098]
[1723568503125,37.68,149.7,149.62,0.12549]
[1723568503332,37.68,149.7,149.62,0.25098]
[1723568503533,37.68,149.7,149.63,0.25098]
[1723568503835,37.68,149.7,149.64,0.12549]
[1723568504232,37.68,149.7,149.6,45.0]
[1723568504433,37.68,149.7,149.61,0.12549]
[1723568504765,37.68,149.67,149.59,20.0]
[1723568504970,37.68,149.67,149.56,20.0]
[1723568506232,37.68,149.67,149.57,45.0]
[1723568506438,37.68,149.65,149.58,20.0]
[1723568506756,37.68,149.65,149.56,20.0]
[1723568506940,37.68,149.65,149.55,6.2991]
[1723568507451,37.68,149.67,149.55,6.2991]
[1723568507759,37.68,149.63,149.55,6.2991]
[1723568508067,0.12549,149.72,149.55,6.2991]
[1723568508068,37.68,149.65,149.55,6.2991]
[1723568508269,37.68,149.65,149.56,20.0]
[1723568508580,37.68,149.61,149.55,6.2991]
[1723568509368,37.68,149.65,149.55,6.2991]
[1723568509369,37.68,149.63,149.55,6.2991]
[1723568510157,37.68,149.63,149.56,0.12549]
[1723568510543,37.68,149.65,149.56,0.25098]
[1723568510966,37.68,149.65,149.56,20.25098]
[1723568511159,37.68,149.65,149.57,45.25098]
[1723568511347,38.8028639,149.75,149.58,0.25098]
[1723568511555,37.68,149.69,149.6,0.12549]
[1723568511748,37.68,149.69,149.6,0.25098]
[1723568511972,37.68,149.67,149.61,0.25098]
[1723568512174,37.68,149.67,149.6,0.12549]
[1723568512347,37.68,149.67,149.6,0.25098]
[1723568512671,37.68,149.67,149.61,0.25098]
[1723568512874,37.68,149.67,149.62,0.12549]
[1723568513768,37.68,149.67,149.61,0.25098]
[1723568513979,37.68,149.67,149.6,0.25098]
[1723568514141,37.68,149.67,149.61,0.12549]
[1723568514547,37.68,149.67,149.61,0.25098]
[1723568514846,15.4005,149.75,149.63,22.12119]
[1723568515047,37.68,149.72,149.63,22.12119]
[1723568515350,37.68,149.72,149.65,0.12549]
[1723568515953,37.68,149.74,149.65,0.12549]
[1723568518376,37.68,149.72,149.65,0.12549]
[1723568518953,37.68,149.74,149.65,0.12549]
[1723568519949,37.68,149.72,149.65,0.12549]
[1723568520269,37.68,149.73,149.65,0.12549]
[1723568521061,23.8272323,149.79,149.7,6.575]
[1723568521062,0.8361323,149.79,149.7,6.575]
[1723568521366,0.8361323,149.79,149.71,45.50196]
[1723568521877,0.8361323,149.79,149.73,0.12549]
[1723568522088,0.8361323,149.79,149.74,21.4111]
[1723568522384,0.8361323,149.79,149.75,45.25098]
[1723568522576,0.8361323,149.79,149.74,6.1958]
[1723568522757,37.68,149.78,149.74,6.1958]
[1723568523086,0.8361323,149.79,149.74,6.1958]
[1723568523788,0.8361323,149.79,149.75,0.12549]
[1723568524278,0.8361323,149.79,149.75,0.25098]
[1723568524669,0.8361323,149.79,149.76,0.25098]
[1723568524978,0.8361323,149.79,149.77,0.12549]
[1723568525354,0.8361323,149.79,149.77,0.25098]
[1723568525550,0.8361323,149.79,149.78,0.25098]
[1723568525790,0.8361323,149.79,149.78,0.12549]
[1723568525967,0.8361323,149.79,149.76,0.12549]
[1723568526163,0.8361323,149.79,149.76,0.50196]
[1723568527173,0.8361323,149.79,149.76,20.50196]
[1723568527399,0.8361323,149.79,149.77,45.0]
[1723568527695,0.8361323,149.79,149.76,0.37647]
[1723568527899,0.8361323,149.79,149.75,20.0]